fUST/lending_fUST_20250912
["ID","MTS","AMOUNT","RATE_DAILY","PERIOD"]
[385093113,1757662256816,-480.0,0.00015342,2]
[385093115,1757662256828,-480.0,0.00015342,2]
[385093117,1757662256839,-480.0,0.00015351,2]
[385093120,1757662256851,-480.0,0.00015351,2]
[385093122,1757662256863,-480.0,0.00015351,2]
[385093124,1757662256875,-480.0,0.00015351,2]
[385093127,1757662256886,-480.0,0.00015351,2]
[385093129,1757662256899,-480.0,0.00015351,2]
[385093131,1757662256911,-480.0,0.00015355,2]
[385093149,1757662257062,-480.0,0.00015355,2]
[385093151,1757662257075,-1500.0,0.00015368,2]
[385093153,1757662257084,-155.0,0.00015369,2]
[385093155,1757662257094,-480.0,0.00015455,2]
[385093157,1757662257103,-480.0,0.00015455,2]
[385093159,1757662257113,-480.0,0.00015455,2]
[385093161,1757662257124,-480.0,0.00015455,2]
[385093163,1757662257133,-330.10111188,0.00015455,2]
[385093165,1757662257142,-480.0,0.00015616,2]
[385093167,1757662257152,-480.0,0.00015616,2]
[385093169,1757662257161,-480.0,0.00015616,2]
[385093171,1757662257170,-480.0,0.00015616,2]
[385093173,1757662257179,-480.0,0.00015616,2]
[385093175,1757662257188,-368.55,0.00015616,2]
[385093177,1757662257198,-1073.43,0.00015616,2]
[385093179,1757662257207,-480.0,0.00015616,2]
[385093181,1757662257217,-431.36141684,0.00015616,2]
[385093183,1757662257226,-530.99,0.00015616,2]
[385093185,1757662257235,-480.0,0.00015616,2]
[385093187,1757662257244,-480.0,0.00015616,2]
[385093189,1757662257253,-480.0,0.00015625,2]
[385093191,1757662257262,-486.95323596,0.00015629,2]
[385093193,1757662257271,-2105.41764886,0.00015772,2]
[385093195,1757662257280,-480.0,0.0001589,2]
[385093197,1757662257290,-480.0,0.0001589,2]
[385093199,1757662257299,-480.0,0.0001589,2]
[385093201,1757662257309,-480.0,0.0001589,2]
[385093203,1757662257318,-480.0,0.0001589,2]
[385093205,1757662257328,-1073.43,0.0001589,2]
[385093207,1757662257337,-480.0,0.0001589,2]
[385093209,1757662257347,-530.99,0.0001589,2]
[385093211,1757662257357,-480.0,0.0001589,2]
[385093213,1757662257367,-480.0,0.0001589,2]
[385093216,1757662257376,-540.255348,0.00015916,2]
[385093217,1757662257385,-480.0,0.00016164,2]
[385093219,1757662257395,-480.0,0.00016164,2]
[385093222,1757662257405,-480.0,0.00016164,2]
[385093224,1757662257415,-480.0,0.00016164,2]
[385093226,1757662257424,-1073.43,0.00016164,2]
[385093228,1757662257433,-480.0,0.00016164,2]
[385093230,1757662257442,-530.99,0.00016164,2]
[385093232,1757662257451,-627.77,0.00016164,2]
[385093234,1757662257461,-480.0,0.00016164,2]
[385093236,1757662257471,-1955.17569514,0.0001632,2]
[385093238,1757662257480,-480.0,0.00016438,2]
[385093240,1757662257490,-432.49912374,0.00016438,2]
[385093242,1757662257499,-480.0,0.00016438,2]
[385093244,1757662257508,-480.0,0.00016438,2]
[385093246,1757662257518,-1073.43,0.00016438,2]
[385093248,1757662257528,-530.99,0.00016438,2]
[385093250,1757662257538,-235.16057355,0.00016438,2]
[385093252,1757662257547,-480.0,0.00016712,2]
[385093254,1757662257557,-532.46833699,0.00016712,2]
[385093256,1757662257567,-153.51,0.00016712,2]
[385093258,1757662257576,-1073.43,0.00016712,2]
[385093260,1757662257585,-530.99,0.00016712,2]
[385093262,1757662257595,-864.0,0.00016801,2]
[385093264,1757662257604,-480.0,0.00016986,2]
[385093266,1757662257613,-1073.43,0.00016986,2]
[385093268,1757662257623,-530.99,0.00016986,2]
[385093270,1757662257632,-480.0,0.0001726,2]
[385093272,1757662257642,-1073.43,0.0001726,2]
[385093274,1757662257651,-530.99,0.0001726,2]
[385093276,1757662257660,-480.0,0.00017534,2]
[385093278,1757662257669,-1073.43,0.00017534,2]
[385093280,1757662257679,-530.99,0.00017534,2]
[385093282,1757662257688,-480.0,0.00017808,2]
[385093284,1757662257697,-1073.43,0.00017808,2]
[385093286,1757662257706,-530.99,0.00017808,2]
[385093288,1757662257715,-425.52086855,0.00017981,2]
[385093290,1757662257724,-480.0,0.00018082,2]
[385093292,1757662257735,-1073.43,0.00018082,2]
[385093294,1757662257744,-530.99,0.00018082,2]
[385093296,1757662257753,-324.05039967,0.00018194,2]
[385093298,1757662257762,-480.0,0.00018356,2]
[385093300,1757662257772,-1073.43,0.00018356,2]
[385093302,1757662257781,-530.99,0.00018356,2]
[385093304,1757662257791,-1000.0,0.00018481,2]
[385093306,1757662257800,-480.0,0.0001863,2]
[385093308,1757662257810,-1073.43,0.0001863,2]
[385093310,1757662257819,-530.99,0.0001863,2]
[385093312,1757662257829,-480.0,0.00018904,2]
[385093314,1757662257839,-1073.43,0.00018904,2]
[385093316,1757662257848,-530.99,0.00018904,2]
[385093318,1757662257858,-469.55914478,0.00019077,2]
[385093320,1757662257867,-480.0,0.00019178,2]
[385093322,1757662257876,-1073.43,0.00019178,2]
[385093324,1757662257885,-530.99,0.00019178,2]
[385093326,1757662257895,-610.60544066,0.00019206,2]
[385093328,1757662257904,-480.0,0.00019452,2]
[385093330,1757662257913,-1073.43,0.00019452,2]
[385093332,1757662257923,-530.99,0.00019452,2]
[385093334,1757662257932,-409.0,0.00019577,2]
[385093336,1757662257941,-527.71,0.00019726,2]
[385093338,1757662257952,-1073.43,0.00019726,2]
[385093340,1757662257961,-530.99,0.00019726,2]
[385093342,1757662257971,-2055.36831501,0.000199,2]
[385093344,1757662257980,-1073.52,0.0002,2]
[385093346,1757662257990,-531.03,0.0002,2]
[385093348,1757662257999,-1702.08347418,0.00020031,2]
[385093350,1757662258008,-609.752195,0.00020187,2]
[385093352,1757662258018,-2055.36831492,0.00020299,2]
[385093354,1757662258028,-1000.0,0.00020329,20]
[385093356,1757662258041,-244.0,0.00020329,20]
[385093358,1757662258051,-1876.35834254,0.00020584,2]
[385093360,1757662258060,-2055.36831492,0.00020699,2]
[385093362,1757662258069,-1000.0,0.000208,15]
[385093364,1757662258079,-2055.36831492,0.00021098,2]
[385093366,1757662258087,-376.01537074,0.00021339,2]
[385093368,1757662258097,-2055.36831492,0.00021498,2]
[385093370,1757662258106,-60315.31311589,0.000218,2]
[385093372,1757662258115,-2055.36831492,0.00021897,2]
[385093374,1757662258125,-153.0,0.00021918,2]
[385093376,1757662258134,-153.0,0.00021918,2]
[385093378,1757662258144,-187.684635,0.00021918,2]
[385093380,1757662258153,-632.96,0.00022,7]
[385093382,1757662258162,-3825.85812909,0.00022081,2]
[385093384,1757662258171,-151.0,0.000221,8]
[385093386,1757662258180,-2055.36831492,0.00022297,2]
[385093388,1757662258189,-1452.68,0.000223,7]
[385093390,1757662258198,-38668.36,0.000223,7]
[385093392,1757662258207,-531.04384426,0.000223,7]
[385093394,1757662258216,-1000.0,0.00022362,20]
[385093396,1757662258225,-492.0,0.00022362,20]
[385093398,1757662258234,-409.0,0.00022577,2]
[385093399,1757662258244,-2055.36831492,0.00022696,2]
[385093401,1757662258253,-201.0,0.00023,7]
[385093403,1757662258263,-2055.36831492,0.00023095,2]
[385093405,1757662258272,-154.487,0.0002325,3]
[385093407,1757662258281,-1154.69,0.00023287,2]
[385093409,1757662258291,-2000.0,0.000234,2]
[385093411,1757662258300,-2055.36831492,0.00023495,2]
[385093413,1757662258309,-4117.64,0.000235,7]
[385093415,1757662258319,-151.0,0.000235,8]
[385093417,1757662258328,-2055.36831492,0.00023894,2]
[385093419,1757662258337,-1829.577297,0.0002392,5]
[385093421,1757662258346,-1000.0,0.0002394,5]
[385093423,1757662258355,-1000.0,0.0002396,5]
[385093425,1757662258365,-1000.0,0.0002398,5]
[385093427,1757662258374,-500.0,0.00024,9]
[385093429,1757662258383,-500.0,0.00024,9]
[385093431,1757662258392,-1000.0,0.00024,5]
[385093433,1757662258401,-250.0,0.00024,10]
[385093435,1757662258411,-847.0429734,0.00024,7]
[385093437,1757662258420,-15339.11696213,0.00024,2]
[385093446,1757662258512,-1312.15405775,0.00024,2]
[385093448,1757662258523,-217.7145751,0.00024,7]
[385093450,1757662258533,-233.13074058,0.00024,7]
[385093452,1757662258549,-250.0,0.000241,10]
[385093454,1757662258559,-632.96,0.000242,7]
[385093456,1757662258568,-250.0,0.000242,10]
[385093458,1757662258577,-2055.36831492,0.00024294,2]
[385093460,1757662258587,-250.0,0.000243,10]
[385093461,1757662258596,-2000.0,0.000244,2]
[385093463,1757662258605,-12912.72024566,0.000244,7]
[385093466,1757662258618,-425.9608348,0.000244,7]
[385093469,1757662258646,-160.0,0.00015,2]
[385093471,1757662258655,-110.74,0.000244,7]
[385093473,1757662258667,-1271.51664875,0.000244,7]
[385093475,1757662258678,-824.26587541,0.000244,7]
[385093480,1757662258715,-485.14174075,0.00013698,2]
[385093482,1757662258725,-723.73,0.00022,2]
[385093484,1757662258734,-600.0,0.0002425,7]
[385093486,1757662258743,-23123.15639538,0.000244,7]
[385093488,1757662258752,-250.0,0.000244,10]
[385093490,1757662258762,-847.0429734,0.000244,7]
[385093492,1757662258772,-217.7145751,0.000244,7]
[385093494,1757662258781,-233.13074058,0.000244,7]
[385093496,1757662258791,-250.0,0.000245,10]
[385093497,1757662258800,-1000.0,0.00024599,20]
[385093499,1757662258810,-791.0,0.00024599,20]
[385093501,1757662258819,-4117.64,0.000246,7]
[385093503,1757662258828,-250.0,0.000246,10]
[385093505,1757662258839,-380.0,0.00024658,2]
[385093507,1757662258849,-200.0,0.00024658,15]
[385093509,1757662258858,-2055.36831492,0.00024693,2]
[385093511,1757662258868,-1452.68,0.000247,7]
[385093513,1757662258878,-250.0,0.000247,10]
[385093515,1757662258887,-250.0,0.000248,10]
[385093517,1757662258896,-610.60544066,0.000248,2]
[385093519,1757662258906,-8645.24057772,0.0002489,3]
[385093521,1757662258916,-250.0,0.000249,10]
[385093523,1757662258926,-106566.40677107,0.000249,2]
[385093537,1757662259062,500.0,0.00013613,2]
[385093545,1757662259136,108.55852923,0.00013613,2]
[385093553,1757662259202,274.76159682,0.00013613,2]
[385093596,1757662259619,-456.329214,0.00013698,2]
[385093598,1757662259631,-23.670786,0.00013698,2]
[385093600,1757662259640,-480.0,0.00013698,2]
[385093602,1757662259650,-344.51802019,0.00013698,2]
[385093627,1757662259894,-144.79865579,0.00013698,2]
[385093629,1757662259905,-401.32317049,0.00013698,2]
[385094321,1757662266938,-515.22704378,0.00013613,2]
[385094341,1757662267122,-300.0,0.00013697,2]
[385094452,1757662268198,500.0,0.00013613,2]
[385094460,1757662268282,500.0,0.00013613,2]
[385094461,1757662268356,500.0,0.00013613,2]
[385094462,1757662268434,193.21693894,0.00013613,2]
[385094463,1757662268526,500.0,0.00013613,2]
[385094478,1757662268677,500.0,0.00013613,2]
[385094490,1757662268775,170.34365354,0.00013613,2]
[385094500,1757662268867,500.0,0.00013613,2]
[385094510,1757662268951,500.0,0.00013613,2]
[385094519,1757662269025,162.21745488,0.00013613,2]
[385095276,1757662276936,-78.67682951,0.00013698,2]
[385095286,1757662277023,-480.0,0.00013698,2]
[385095295,1757662277113,-395.16203851,0.00013698,2]
[385095303,1757662277184,-480.0,0.00013698,2]
[385095312,1757662277254,-480.0,0.00013698,2]
[385095320,1757662277325,-488.73668098,0.00013698,2]
[385095329,1757662277397,-480.0,0.00013698,2]
[385095337,1757662277467,-480.0,0.00013698,2]
[385095347,1757662277540,-501.58141793,0.00013698,2]
[385095356,1757662277614,-964.98606614,0.00013698,2]
[385095394,1757662277954,-341.72393386,0.00013698,2]
[385095415,1757662278141,-480.0,0.00013698,2]
[385095424,1757662278217,-480.0,0.00013698,2]
[385095433,1757662278292,-480.0,0.00013698,2]
[385095442,1757662278368,-480.0,0.00013698,2]
[385095448,1757662278446,-480.0,0.00013698,2]
[385095449,1757662278518,-480.0,0.00013698,2]
[385095458,1757662278595,-480.0,0.00013698,2]
[385095466,1757662278667,-480.0,0.00013698,2]
[385095476,1757662278747,-480.0,0.00013698,2]
[385095485,1757662278824,-196.56213228,0.00013698,2]
[385096297,1757662286940,-283.43786772,0.00013698,2]
[385096306,1757662287016,-480.0,0.00013698,2]
[385096314,1757662287090,-305.5094072,0.00013698,2]
[385096322,1757662287162,-480.0,0.00013698,2]
[385096328,1757662287238,-480.0,0.00013698,2]
[385096329,1757662287308,-480.0,0.00013698,2]
[385096330,1757662287381,-480.0,0.00013698,2]
[385096335,1757662287453,-480.0,0.00013698,2]
[385096343,1757662287530,-480.0,0.00013698,2]
[385096394,1757662288020,-480.0,0.00013698,2]
[385096402,1757662288094,-480.0,0.00013698,2]
[385097061,1757662296935,-480.0,0.00013698,2]
[385097071,1757662297020,-480.0,0.00013698,2]
[385097079,1757662297092,-480.0,0.00013698,2]
[385097087,1757662297159,-480.0,0.00013698,2]
[385097095,1757662297226,-336.62796281,0.00013698,2]
[385097101,1757662297298,-480.0,0.00013698,2]
[385097106,1757662297369,-480.0,0.00013698,2]
[385097564,1757662302965,-152.0,0.00013053,2]
[385097773,1757662305232,-421.86793081,0.00013053,2]
[385097920,1757662307011,-92.13206919,0.00013053,2]
[385098538,1757662316254,1000.0,0.00018595,20]
[385098580,1757662317006,-480.0,0.00013698,2]
[385098581,1757662317078,-480.0,0.00013698,2]
[385098582,1757662317153,-480.0,0.00013698,2]
[385098583,1757662317227,-480.0,0.00013698,2]
[385098584,1757662317295,-480.0,0.00013698,2]
[385098585,1757662317369,-480.0,0.00013698,2]
[385098586,1757662317439,-480.0,0.00013698,2]
[385098587,1757662317505,-200.96376046,0.00013698,2]
[385098588,1757662317581,-480.0,0.00013698,2]
[385098590,1757662327035,-300.0,0.00013697,2]
[385098591,1757662327111,-480.0,0.00013698,2]
[385098592,1757662327177,-480.0,0.00013698,2]
[385098593,1757662327244,-480.0,0.00013698,2]
[385098594,1757662327316,-480.0,0.00013698,2]
[385098595,1757662327391,-480.0,0.00013698,2]
[385098596,1757662327466,-480.0,0.00013698,2]
[385098597,1757662327538,-480.0,0.00013698,2]
[385098598,1757662327607,-319.75183636,0.00013698,2]
[385098599,1757662327673,-480.0,0.00013698,2]
[385098600,1757662336990,-1200.0,0.00013697,2]
[385098601,1757662337066,-480.0,0.00013698,2]
[385098602,1757662337150,-480.0,0.00013698,2]
[385098603,1757662337220,-480.0,0.00013698,2]
[385098604,1757662337289,-480.0,0.00013698,2]
[385098605,1757662337360,-1059.96,0.00013698,2]
[385098606,1757662337685,-1640.09,0.00013698,2]
[385098607,1757662337753,-480.0,0.00013698,2]
[385098608,1757662337822,-480.0,0.00013698,2]
[385098609,1757662337890,-577.50064119,0.00013698,2]
[385098610,1757662337961,-480.0,0.00013698,2]
[385098611,1757662343274,480.0,0.00013698,2]
[385098612,1757662343344,480.0,0.00013698,2]
[385098613,1757662345759,480.0,0.00013698,2]
[385098614,1757662351838,480.0,0.00013698,2]
[385098615,1757662352193,480.0,0.00013698,2]
[385098616,1757662352522,284.82871762,0.00013698,2]
[385098617,1757662352583,195.17128238,0.00013698,2]
[385098618,1757662359151,155.0,0.00024,120]
[385098619,1757662360535,155.0,0.000255,120]
[385098620,1757662361949,155.0,0.000269,120]
[385098621,1757662363164,6038.0889607,0.00013681,2]
[385098622,1757662364194,483.43614104,0.00013698,2]
[385098623,1757662370458,480.0,0.00013698,2]
[385098624,1757662372141,480.0,0.00013698,2]
[385098625,1757662372985,480.0,0.00013698,2]
[385098626,1757662376471,480.0,0.00013698,2]
[385098627,1757662376606,1363.31361588,0.00013698,2]
[385098628,1757662376681,611.95638412,0.00013698,2]
[385098629,1757662387123,-300.0,0.00013697,2]
[385098630,1757662387212,-480.0,0.00013698,2]
[385098631,1757662397173,-480.0,0.00013698,2]
[385098632,1757662397259,-487.60965408,0.00013698,2]
[385098633,1757662397332,-480.0,0.00013698,2]
[385098634,1757662397512,-480.0,0.00013698,2]
[385098635,1757662397595,-480.0,0.00013698,2]
[385098636,1757662399583,-203.2046558,0.00013514,2]
[385098637,1757662401848,-393.72357633,0.00013514,2]
[385098638,1757662404122,-294.57134944,0.00013514,2]
[385098640,1757662405813,-430.81368578,0.00013514,2]
[385098641,1757662408059,-191.13106353,0.00013514,2]
[385098642,1757662409630,-440.49561061,0.00013514,2]
[385098644,1757662411987,-326.44136532,0.00013514,2]
[385098645,1757662413612,-358.67745514,0.00013514,2]
[385098646,1757662416740,-208.42979622,0.00013514,2]
[385098647,1757662418396,-213.58288526,0.00013514,2]
[385098648,1757662421927,-161.32346793,0.00013514,2]
[385098649,1757662424161,-207.12311892,0.00013514,2]
[385098650,1757662427703,-243.18141578,0.00013514,2]
[385098651,1757662429499,-293.90784349,0.00013514,2]
[385098652,1757662442870,300.0,0.00013513,2]
[385098653,1757662461639,-409.96063973,0.00013514,2]
[385098654,1757662465135,-355.6001215,0.00013514,2]
[385098655,1757662467887,-263.37664868,0.00013514,2]
[385098656,1757662470725,-165.43151966,0.00013514,2]
[385098657,1757662473104,-184.11073457,0.00013514,2]
[385098658,1757662475013,261.54074603,0.00013513,2]
[385098659,1757662475082,202.13981407,0.00013513,2]
[385098660,1757662476522,-184.11073457,0.00013514,2]
[385098661,1757662478873,-172.72673596,0.00013514,2]
[385098662,1757662482066,-153.15883562,0.00013514,2]
[385098663,1757662484460,184.11073457,0.00013379,2]
[385098664,1757662485801,-155.90967631,0.00013514,2]
[385098665,1757662487391,-439.56383155,0.00013514,2]
[385098666,1757662491394,-216.76467282,0.00013514,2]
[385098667,1757662492488,748.63234348,0.00013379,2]
[385098668,1757662494121,-153.15883562,0.00013514,2]
[385098669,1757662497276,-339.81310679,0.00013514,2]
[385098670,1757662501980,356.83747053,0.00013379,2]
[385098671,1757662502768,300.0,0.00013513,2]
[385098672,1757662502855,300.0,0.00013513,2]
[385098673,1757662502946,300.0,0.00013513,2]
[385098674,1757662503278,1200.0,0.00013513,2]
[385098675,1757662506620,285.98,0.00012329,2]
[385098676,1757662518424,379.13978191,0.00013379,2]
[385098684,1757662562656,300.0,0.00013513,2]
[385098685,1757662589931,4881.62910941,0.00013455,2]
[385098686,1757662589992,3147.55750252,0.00013455,2]
[385098688,1757662608685,179.57226996,0.00013513,2]
[385098689,1757662608765,500.0,0.00013513,2]
[385098690,1757662608841,500.0,0.00013513,2]
[385098691,1757662609058,500.0,0.00013513,2]
[385098692,1757662609124,265.33642989,0.00013513,2]
[385098693,1757662609194,500.0,0.00013513,2]
[385098694,1757662609263,500.0,0.00013513,2]
[385098695,1757662609334,500.0,0.00013513,2]
[385098696,1757662609404,500.0,0.00013513,2]
[385098697,1757662609470,230.35563118,0.00013513,2]
[385098698,1757662609539,372.6116474,0.00013513,2]
[385098699,1757662609608,500.0,0.00013513,2]
[385098700,1757662609680,500.0,0.00013513,2]
[385098701,1757662609749,500.0,0.00013513,2]
[385098702,1757662609825,500.0,0.00013513,2]
[385098703,1757662609898,304.57651905,0.00013513,2]
[385098704,1757662609963,195.42348095,0.00013513,2]
[385098705,1757662610038,500.0,0.00013513,2]
[385098706,1757662610109,500.0,0.00013513,2]
[385098707,1757662610180,500.0,0.00013513,2]
[385098708,1757662610248,162.71814655,0.00013513,2]
[385098709,1757662610317,500.0,0.00013513,2]
[385098710,1757662610387,500.0,0.00013513,2]
[385098711,1757662610456,500.0,0.00013513,2]
[385098712,1757662610524,500.0,0.00013513,2]
[385098713,1757662610593,500.0,0.00013513,2]
[385098714,1757662610662,500.0,0.00013513,2]
[385098715,1757662610731,500.0,0.00013513,2]
[385098716,1757662610802,500.0,0.00013513,2]
[385098717,1757662610872,500.0,0.00013513,2]
[385098718,1757662610946,500.0,0.00013513,2]
[385098719,1757662611019,500.0,0.00013513,2]
[385098720,1757662611096,500.0,0.00013513,2]
[385098721,1757662611170,500.0,0.00013513,2]
[385098722,1757662611240,500.0,0.00013513,2]
[385098723,1757662611307,500.0,0.00013513,2]
[385098724,1757662611372,500.0,0.00013513,2]
[385098725,1757662611437,141.8683725,0.00013513,2]
[385098726,1757662611495,358.1316275,0.00013513,2]
[385098727,1757662611564,500.0,0.00013513,2]
[385098728,1757662611628,500.0,0.00013513,2]
[385098729,1757662611691,500.0,0.00013513,2]
[385098730,1757662611759,500.0,0.00013513,2]
[385098731,1757662611836,500.0,0.00013513,2]
[385098732,1757662611904,500.0,0.00013513,2]
[385098733,1757662611972,500.0,0.00013513,2]
[385098734,1757662612049,500.0,0.00013513,2]
[385098735,1757662612117,500.0,0.00013513,2]
[385098736,1757662612185,500.0,0.00013513,2]
[385098737,1757662612252,500.0,0.00013513,2]
[385098738,1757662612326,500.0,0.00013513,2]
[385098739,1757662612394,500.0,0.00013513,2]
[385098740,1757662612462,500.0,0.00013513,2]
[385098741,1757662612540,500.0,0.00013513,2]
[385098742,1757662612608,500.0,0.00013513,2]
[385098743,1757662612686,500.0,0.00013513,2]
[385098744,1757662612755,500.0,0.00013513,2]
[385098745,1757662612824,500.0,0.00013513,2]
[385098746,1757662612894,141.8783725,0.00013513,2]
[385098747,1757662612952,358.1216275,0.00013513,2]
[385098748,1757662613015,500.0,0.00013513,2]
[385098749,1757662613079,500.0,0.00013513,2]
[385098750,1757662613147,500.0,0.00013513,2]
[385098751,1757662613215,500.0,0.00013513,2]
[385098752,1757662613290,500.0,0.00013513,2]
[385098753,1757662613359,500.0,0.00013513,2]
[385098754,1757662613431,500.0,0.00013513,2]
[385098755,1757662613499,500.0,0.00013513,2]
[385098756,1757662613569,387.86928355,0.00013513,2]
[385098757,1757662613637,500.0,0.00013513,2]
[385098758,1757662613721,500.0,0.00013513,2]
[385098759,1757662613788,500.0,0.00013513,2]
[385098760,1757662613869,151.0,0.000133,2]
[385098761,1757662613946,151.0,0.000128,2]
[385098762,1757662623045,300.0,0.00013513,2]
[385098763,1757662631589,500.0,0.00013513,2]
[385098764,1757662631666,500.0,0.00013513,2]
[385098765,1757662631750,500.0,0.00013513,2]
[385098766,1757662631829,500.0,0.00013513,2]
[385098767,1757662631921,500.0,0.00013513,2]
[385098768,1757662632002,199.99999999,0.00013513,2]
[385098769,1757662632090,452.01908896,0.00013513,2]
[385098770,1757662632156,47.98091104,0.00013513,2]
[385098771,1757662632249,500.0,0.00013513,2]
[385098772,1757662632332,500.0,0.00013513,2]
[385098773,1757662632408,500.0,0.00013513,2]
[385098774,1757662632486,500.0,0.00013513,2]
[385098775,1757662632714,500.0,0.00013513,2]
[385098776,1757662632791,500.0,0.00013513,2]
[385098777,1757662632884,500.0,0.00013513,2]
[385098778,1757662632961,500.0,0.00013513,2]
[385098779,1757662683571,300.0,0.00013513,2]
[385098780,1757662696569,5652.02908896,0.00012726,2]
[385098781,1757662696633,4347.97091104,0.00012726,2]
[385098782,1757662722625,626.912,0.00013711,30]
[385098783,1757662802769,300.0,0.00013513,2]
[385098784,1757662803124,300.0,0.00013513,2]
[385098785,1757662803439,1200.0,0.00013513,2]
[385098786,1757662822571,355.48458,0.00027,120]
[385098787,1757662860177,3852.03908896,0.00013414,2]
[385098788,1757662860248,9409.86570858,0.00013414,2]
[385098790,1757662885008,590.14429142,0.00013414,2]
[385098791,1757662885086,2302.00685718,0.00013414,2]
[385098792,1757662922714,300.0,0.00013513,2]
[385098794,1757662983948,300.0,0.00013513,2]
[385098800,1757663043310,154.0,0.00013513,2]
[385098801,1757663130432,6944.00314282,0.00013414,2]
[385098802,1757663130515,1897.26672222,0.00013414,2]
[385098804,1757663173633,766.5218668,0.00012692,2]
[385098809,1757663226099,2313.72091888,0.00013414,2]
[385098814,1757663338087,236.62033903,0.00013109,2]
[385098817,1757663400694,4785.88015307,0.00013414,2]
[385098818,1757663400762,1108.29975695,0.00013414,2]
[385098843,1757663438064,-1524.92231469,0.00013514,2]
[385098857,1757663438194,-361314.78430238,0.00013514,2]
[385098860,1757663438204,-802.7299178,0.00013514,2]
[385098861,1757663438214,-2313.72091885,0.00013557,2]
[385098863,1757663438223,-1031.486071,0.00013655,2]
[385098865,1757663438233,-500.0,0.00013673,2]
[385098867,1757663438242,-500.0,0.00013673,2]
[385098869,1757663438251,-500.0,0.00013673,2]
[385098871,1757663438261,-501.91736485,0.00013673,2]
[385098873,1757663438270,-213.11346901,0.00013673,2]
[385098875,1757663438280,-500.0,0.00013673,2]
[385098876,1757663438289,-500.0,0.00013673,2]
[385098877,1757663438298,-500.44709676,0.00013673,2]
[385098878,1757663438308,-160.08160613,0.00013673,2]
[385098879,1757663438317,-500.0,0.00013673,2]
[385098880,1757663438326,-500.0,0.00013673,2]
[385098881,1757663438335,-500.0,0.00013673,2]
[385098882,1757663438345,-500.0,0.00013673,2]
[385098883,1757663438354,-500.0,0.00013673,2]
[385098884,1757663438364,-639.1747751,0.00013673,2]
[385098885,1757663438373,-500.0,0.00013673,2]
[385098886,1757663438383,-500.0,0.00013673,2]
[385098887,1757663438393,-502.88567287,0.00013673,2]
[385098888,1757663438402,-500.0,0.00013673,2]
[385098889,1757663438411,-500.0,0.00013673,2]
[385098890,1757663438418,-501.3793714,0.00013673,2]
[385098891,1757663438427,-500.0,0.00013673,2]
[385098892,1757663438437,-500.0,0.00013673,2]
[385098893,1757663438446,-500.43853504,0.00013673,2]
[385098894,1757663438455,-500.0,0.00013673,2]
[385098895,1757663438464,-158.91104472,0.00013673,2]
[385098896,1757663438474,-500.0,0.00013673,2]
[385098897,1757663438483,-500.0,0.00013673,2]
[385098898,1757663438492,-500.0,0.00013673,2]